[Event "White Rook U14 Final 2019"]
[Site "Sochi"]
[Date "2019.06.06"]
[Round "4.21"]
[White "Hrbek, Stepan"]
[Black "Lotnik, Vladislav"]
[Result "1-0"]
[ECO "A10"]
[WhiteElo "2013"]
[BlackElo "1490"]
[Annotator "NA RC"]
[PlyCount "107"]
[EventDate "2019.06.02"]
[EventCountry "RUS"]
[SourceTitle "playchess.com"]
[Source "ChessBase"]
[SourceQuality "1"]
[TimeControl "5400+30"]

1. Nf3 {[%emt 0:00:00]} d5 {[%emt 0:00:00]} 2. e3 {[%emt 0:00:00]} e6 {[%emt 0:00:00]} 3. c4 {[%emt 0:00:00]} f5 {[%emt 0:00:00]} 4. b3 {[%emt 0:00:19]} Nf6 {[%emt 0:00:00]} 5. Bb2 {[%emt 0:00:09]} Bd6 {[%emt 0:00:26]} 6. d4 {[%emt 0:00:40]} c6 {[%emt 0:00:16]} 7. Bd3 {[%emt 0:00:19]} O-O {[%emt 0:00:26]} 8. O-O {[%emt 0:00:50]} Bd7 {[%emt 0:00:23]} 9. Nc3 {[%emt 0:12:07]} Ne4 {[%emt 0:01:57]} 10. Ne2 {[%emt 0:05:15]} Be8 {[%emt 0:01:33]} 11. Ne5 {[%emt 0:03:37]} Bh5 {[%emt 0:10:26]} 12. f3 {[%emt 0:07:35]} Bxe5 {[%emt 0:01:31]} 13. dxe5 {[%emt 0:05:13]} Nc5 {[%emt 0:03:25]} 14. Nf4 {[%emt 0:02:14]} Qe8 {[%emt 0:01:01]} 15. Ba3 {[%emt 0:04:34]} Nbd7 {[%emt 0:00:22]} 16. cxd5 {[%emt 0:00:23]} cxd5 {[%emt 0:01:15]} 17. Bb5 {[%emt 0:00:48]} Rc8 {[%emt 0:02:42]} 18. Bxc5 {[%emt 0:00:23]} Rxc5 {[%emt 0:00:31]} 19. Bxd7 {[%emt 0:00:08]} Qxd7 {[%emt 0:00:04]} 20. Nxh5 {[%emt 0:00:04]} Rfc8 {[%emt 0:00:45]} 21. Qd4 {[%emt 0:05:39]} Qb5 {[%emt 0:00:50]} 22. Nf4 {[%emt 0:03:38]} Kf7 {[%emt 0:00:36]} 23. Nd3 {[%emt 0:02:16]} Rc2 {[%emt 0:00:12]} 24. Rac1 {[%emt 0:05:57]} Qa5 {[%emt 0:02:20]} 25. Rxc2 {[%emt 0:02:53]} Rxc2 {[%emt 0:02:25]} 26. Nb4 {[%emt 0:07:12]} Rc7 {[%emt 0:00:05]} 27. e4 {[%emt 0:00:35]} dxe4 {[%emt 0:03:04]} 28. fxe4 {[%emt 0:01:40]} g6 {[%emt 0:01:50]} 29. exf5 {[%emt 0:00:24]} gxf5 {[%emt 0:00:28]} 30. g4 {[%emt 0:00:21]} Qc5 {[%emt 0:00:24]} 31. Qxc5 {[%emt 0:04:36]} Rxc5 {[%emt 0:01:26]} 32. Nd3 {[%emt 0:00:17]} Rd5 {[%emt 0:00:07]} 33. Rf3 {[%emt 0:00:43]} Ke7 {[%emt 0:00:45]} 34. gxf5 {[%emt 0:00:09]} exf5 {[%emt 0:00:20]} 35. Kf1 {[%emt 0:00:13]} Rd8 {[%emt 0:00:34]} 36. Ke2 {[%emt 0:02:21]} Ke6 {[%emt 0:01:51]} 37. Rh3 {[%emt 0:00:52]} Rc8 {[%emt 0:00:08]} 38. Ke3 {[%emt 0:00:56]} Rh8 {[%emt 0:00:34]} 39. Rh6+ {[%emt 0:00:05]} Ke7 {[%emt 0:05:13]} 40. Nf4 {[%emt 0:02:05]} Kf7 {[%emt 0:01:51]} 41. Rf6+ {[%emt 0:00:11]} Ke7 {[%emt 0:00:30]} 42. Nd5+ {[%emt 0:00:36]} Kd7 {[%emt 0:01:29]} 43. Rd6+ {[%emt 0:00:11]} Kc8 {[%emt 0:00:08]} 44. e6 {[%emt 0:00:33]} Re8 {[%emt 0:00:08]} 45. e7 {[%emt 0:00:17]} h5 {[%emt 0:00:28]} 46. Kf4 {[%emt 0:00:14]} a5 {[%emt 0:00:15]} 47. Kxf5 {[%emt 0:00:17]} b5 {[%emt 0:00:29]} 48. Ke6 {[%emt 0:00:18]} a4 {[%emt 0:00:10]} 49. Rd7 {[%emt 0:01:12]} axb3 {[%emt 0:00:12]} 50. axb3 {[%emt 0:00:20]} Rxe7+ {[%emt 0:00:22]} 51. Nxe7+ {[%emt 0:00:17]} Kb8 {[%emt 0:00:04]} 52. Nc6+ {[%emt 0:00:00]} Kc8 {[%emt 0:00:09]} 53. Kd6 {[%emt 0:00:00]} b4 {[%emt 0:00:24]} 54. Rc7# {[%emt 0:00:00]} 1-0

[Event "White Rook U14 Final 2019"]
[Site "Sochi"]
[Date "2019.06.06"]
[Round "4.22"]
[White "Kostornichenko, Yana"]
[Black "Soucek, Jan"]
[Result "1-0"]
[ECO "C70"]
[WhiteElo "1706"]
[BlackElo "1543"]
[Annotator "NA RC"]
[PlyCount "111"]
[EventDate "2019.06.02"]
[EventCountry "RUS"]
[SourceTitle "playchess.com"]
[Source "ChessBase"]
[SourceQuality "1"]
[TimeControl "5400+30"]

1. e4 {[%emt 0:00:00]} e5 {[%emt 0:00:00]} 2. Nf3 {[%emt 0:00:00]} Nc6 {[%emt 0:00:00]} 3. Bb5 {[%emt 0:00:00]} g6 {[%emt 0:01:01]} 4. c3 {[%emt 0:02:42]} Bg7 {[%emt 0:13:42]} 5. O-O {[%emt 0:00:52]} Nge7 {[%emt 0:01:59]} 6. d3 {[%emt 0:10:16]} O-O {[%emt 0:00:07]} 7. Ba4 {[%emt 0:00:59]} a6 {[%emt 0:00:47]} 8. Be3 {[%emt 0:00:26]} b5 {[%emt 0:03:04]} 9. Bc2 {[%emt 0:00:04]} d6 {[%emt 0:00:41]} 10. Re1 {[%emt 0:01:51]} h6 {[%emt 0:02:50]} 11. a4 {[%emt 0:03:28]} Rb8 {[%emt 0:01:10]} 12. axb5 {[%emt 0:03:38]} axb5 {[%emt 0:00:17]} 13. d4 {[%emt 0:03:21]} Qe8 {[%emt 0:03:20]} 14. Nbd2 {[%emt 0:14:31]} f5 {[%emt 0:02:34]} 15. exf5 {[%emt 0:02:19]} Nxf5 {[%emt 0:00:28]} 16. dxe5 {[%emt 0:00:42]} Nxe5 {[%emt 0:07:41]} 17. Nxe5 {[%emt 0:03:16]} dxe5 {[%emt 0:06:40]} 18. Bc5 {[%emt 0:01:53]} Rf6 {[%emt 0:04:55]} 19. Nf3 {[%emt 0:01:39]} Ra6 {[%emt 0:03:06]} 20. Bb3+ {[%emt 0:06:51]} Kh7 {[%emt 0:01:36]} 21. Rxa6 {[%emt 0:05:36]} Bxa6 {[%emt 0:04:48]} 22. g4 {[%emt 0:05:01]} Nd6 {[%emt 0:06:19]} 23. Bd4 {[%emt 0:05:16]} e4 {[%emt 0:06:53]} 24. Bxg7 {[%emt 0:01:22]} Kxg7 {[%emt 0:00:04]} 25. Qd4+ {[%emt 0:02:28]} Kh7 {[%emt 0:00:43]} 26. Nd2 {[%emt 0:00:32]} Bb7 {[%emt 0:01:35]} 27. Bc2 {[%emt 0:01:06]} Qe6 {[%emt 0:01:18]} 28. f3 {[%emt 0:01:36]} Re8 {[%emt 0:00:35]} 29. Nxe4 {[%emt 0:03:30]} Nxe4 {[%emt 0:01:38]} 30. Bxe4 {[%emt 0:00:07]} Bxe4 {[%emt 0:00:37]} 31. Rxe4 {[%emt 0:00:46]} Qf7 {[%emt 0:00:00]} 32. Rxe8 {[%emt 0:00:56]} Qxe8 {[%emt 0:00:00]} 33. Qe4 {[%emt 0:01:25]} Qd8 {[%emt 0:00:12]} 34. Kf2 {[%emt 0:00:16]} Qd2+ {[%emt 0:00:30]} 35. Qe2 {[%emt 0:00:41]} Qd7 {[%emt 0:01:16]} 36. h4 {[%emt 0:00:05]} b4 {[%emt 0:00:13]} 37. cxb4 {[%emt 0:00:53]} Qd4+ {[%emt 0:00:51]} 38. Kg2 {[%emt 0:01:58]} Qxb4 {[%emt 0:00:04]} 39. h5 {[%emt 0:00:36]} Qd6 {[%emt 0:00:17]} 40. Qc2 {[%emt 0:00:16]} Qb6 {[%emt 0:01:49]} 41. Qxg6+ {[%emt 0:00:39]} Qxg6 {[%emt 0:01:30]} 42. hxg6+ {[%emt 0:00:15]} Kxg6 {[%emt 0:00:06]} 43. Kg3 {[%emt 0:00:07]} Kg5 {[%emt 0:00:03]} 44. f4+ {[%emt 0:00:17]} Kf6 {[%emt 0:01:03]} 45. Kh4 {[%emt 0:00:23]} c5 {[%emt 0:00:08]} 46. g5+ {[%emt 0:00:14]} hxg5+ {[%emt 0:00:09]} 47. fxg5+ {[%emt 0:00:00]} Kg6 {[%emt 0:00:06]} 48. Kg4 {[%emt 0:00:32]} c4 {[%emt 0:00:14]} 49. Kf4 {[%emt 0:00:29]} Kg7 {[%emt 0:00:15]} 50. Ke4 {[%emt 0:00:14]} Kg6 {[%emt 0:00:19]} 51. Kd5 {[%emt 0:02:07]} Kxg5 {[%emt 0:00:04]} 52. Kxc4 {[%emt 0:00:13]} Kf6 {[%emt 0:00:13]} 53. Kb5 {[%emt 0:00:19]} Ke6 {[%emt 0:00:15]} 54. Kc6 {[%emt 0:01:12]} Ke7 {[%emt 0:01:08]} 55. Kc7 {[%emt 0:01:03]} Ke6 {[%emt 0:00:00]} 56. b4 {[%emt 0:00:18]} 1-0

[Event "White Rook U14 Final 2019"]
[Site "Sochi"]
[Date "2019.06.06"]
[Round "4.23"]
[White "Hrbek, Jachym"]
[Black "Abubekerov, Iliya"]
[Result "1-0"]
[ECO "A14"]
[WhiteElo "1394"]
[BlackElo "1199"]
[Annotator "NA RC"]
[PlyCount "169"]
[EventDate "2019.06.02"]
[EventCountry "RUS"]
[SourceTitle "playchess.com"]
[Source "ChessBase"]
[SourceQuality "1"]
[TimeControl "5400+30"]

1. Nf3 {[%emt 0:00:00]} d5 {[%emt 0:00:00]} 2. g3 {[%emt 0:00:00]} Nf6 {[%emt 0:00:00]} 3. Bg2 {[%emt 0:00:34]} e6 {[%emt 0:00:00]} 4. d3 {[%emt 0:02:32]} c5 {[%emt 0:00:00]} 5. O-O {[%emt 0:01:51]} Nc6 {[%emt 0:00:00]} 6. Nbd2 {[%emt 0:02:54]} Be7 {[%emt 0:00:09]} 7. c4 {[%emt 0:01:36]} O-O {[%emt 0:00:15]} 8. b3 {[%emt 0:02:12]} d4 {[%emt 0:01:04]} 9. Bb2 {[%emt 0:01:47]} e5 {[%emt 0:00:09]} 10. Re1 {[%emt 0:05:56]} Bf5 {[%emt 0:00:18]} 11. h3 {[%emt 0:03:19]} h5 {[%emt 0:01:44]} 12. Qc2 {[%emt 0:01:00]} Nb4 {[%emt 0:00:30]} 13. Qb1 {[%emt 0:02:06]} Nc6 {[%emt 0:01:38]} 14. e3 {[%emt 0:06:18]} Qd7 {[%emt 0:01:45]} 15. exd4 {[%emt 0:02:56]} exd4 {[%emt 0:00:13]} 16. Kh2 {[%emt 0:02:09]} Nb4 {[%emt 0:00:07]} 17. Ne5 {[%emt 0:01:12]} Qc7 {[%emt 0:00:31]} 18. a3 {[%emt 0:00:37]} Nc6 {[%emt 0:00:23]} 19. Nxc6 {[%emt 0:00:37]} bxc6 {[%emt 0:00:05]} 20. Bxc6 {[%emt 0:00:30]} Qxc6 {[%emt 0:00:20]} 21. Rxe7 {[%emt 0:01:24]} Be6 {[%emt 0:00:39]} 22. b4 {[%emt 0:01:23]} Rfb8 {[%emt 0:00:29]} 23. Qh1 {[%emt 0:01:09]} Qc8 {[%emt 0:01:50]} 24. Ne4 {[%emt 0:08:26]} Kf8 {[%emt 0:01:54]} 25. Rxe6 {[%emt 0:00:16]} fxe6 {[%emt 0:01:43]} 26. Nxc5 {[%emt 0:00:44]} e5 {[%emt 0:00:38]} 27. Qf3 {[%emt 0:02:56]} a5 {[%emt 0:01:22]} 28. Re1 {[%emt 0:03:01]} axb4 {[%emt 0:01:53]} 29. Rxe5 {[%emt 0:00:24]} Kg8 {[%emt 0:02:19]} 30. axb4 {[%emt 0:01:02]} Qd8 {[%emt 0:07:22]} 31. b5 {[%emt 0:00:48]} Qd6 {[%emt 0:01:20]} 32. Qf4 {[%emt 0:01:08]} Rf8 {[%emt 0:01:37]} 33. Qxd4 {[%emt 0:01:09]} Qxd4 {[%emt 0:00:44]} 34. Bxd4 {[%emt 0:00:00]} Rf7 {[%emt 0:03:43]} 35. Kg2 {[%emt 0:01:01]} Nd7 {[%emt 0:00:47]} 36. Rxh5 {[%emt 0:00:46]} Nxc5 {[%emt 0:00:04]} 37. Rxc5 {[%emt 0:00:30]} Ra3 {[%emt 0:01:12]} 38. b6 {[%emt 0:03:03]} Rxd3 {[%emt 0:01:44]} 39. Be5 {[%emt 0:00:29]} Rdf3 {[%emt 0:04:14]} 40. Bf4 {[%emt 0:00:38]} Rb3 {[%emt 0:01:58]} 41. Rc8+ {[%emt 0:01:10]} Kh7 {[%emt 0:00:14]} 42. c5 {[%emt 0:00:13]} Rb2 {[%emt 0:03:45]} 43. Rb8 {[%emt 0:01:16]} g5 {[%emt 0:00:13]} 44. Be3 {[%emt 0:00:03]} Re7 {[%emt 0:08:35]} 45. c6 {[%emt 0:00:45]} Rxe3 {[%emt 0:00:47]} 46. c7 {[%emt 0:00:27]} Ree2 {[%emt 0:00:01]} 47. Rh8+ {[%emt 0:01:45]} Kg7 {[%emt 0:01:14]} 48. Rf8 {[%emt 0:00:37]} Rec2 {[%emt 0:00:00]} 49. c8=Q {[%emt 0:01:11]} Rxc8 {[%emt 0:00:00]} 50. Rxc8 {[%emt 0:00:05]} Rxb6 {[%emt 0:00:00]} 51. Rc5 {[%emt 0:00:31]} Kg6 {[%emt 0:00:01]} 52. g4 {[%emt 0:00:39]} Rb4 {[%emt 0:01:17]} 53. Rf5 {[%emt 0:01:36]} Rd4 {[%emt 0:00:09]} 54. Kg3 {[%emt 0:00:00]} Rd3+ {[%emt 0:00:16]} 55. f3 {[%emt 0:00:58]} Rd1 {[%emt 0:00:21]} 56. Re5 {[%emt 0:04:45]} Rd6 {[%emt 0:00:38]} 57. h4 {[%emt 0:00:05]} gxh4+ {[%emt 0:00:24]} 58. Kxh4 {[%emt 0:00:06]} Rd8 {[%emt 0:00:05]} 59. Kg3 {[%emt 0:00:56]} Rd6 {[%emt 0:01:45]} 60. Kf4 {[%emt 0:01:00]} Rd4+ {[%emt 0:00:00]} 61. Re4 {[%emt 0:00:04]} Rd6 {[%emt 0:00:00]} 62. Ke5 {[%emt 0:00:27]} Rd8 {[%emt 0:00:00]} 63. f4 {[%emt 0:01:47]} Re8+ {[%emt 0:00:00]} 64. Kd4 {[%emt 0:00:21]} Rd8+ {[%emt 0:00:11]} 65. Ke3 {[%emt 0:00:00]} Ra8 {[%emt 0:00:03]} 66. Re6+ {[%emt 0:00:55]} Kf7 {[%emt 0:00:05]} 67. f5 {[%emt 0:00:00]} Ra1 {[%emt 0:00:42]} 68. Kf4 {[%emt 0:00:10]} Ra4+ {[%emt 0:00:16]} 69. Kg5 {[%emt 0:00:05]} Ra8 {[%emt 0:00:00]} 70. Rf6+ {[%emt 0:00:33]} Kg7 {[%emt 0:00:45]} 71. Rg6+ {[%emt 0:00:46]} Kf7 {[%emt 0:00:07]} 72. Re6 {[%emt 0:01:38]} Rg8+ {[%emt 0:00:41]} 73. Kf4 {[%emt 0:00:00]} Ra8 {[%emt 0:00:00]} 74. g5 {[%emt 0:00:00]} Ra4+ {[%emt 0:00:00]} 75. Re4 {[%emt 0:00:02]} Ra1 {[%emt 0:00:00]} 76. g6+ {[%emt 0:00:47]} Kf6 {[%emt 0:00:30]} 77. Re6+ {[%emt 0:00:00]} Kg7 {[%emt 0:00:03]} 78. Re7+ {[%emt 0:00:00]} Kf8 {[%emt 0:00:13]} 79. Rf7+ {[%emt 0:01:42]} Kg8 {[%emt 0:00:08]} 80. Kg5 {[%emt 0:00:28]} Rg1+ {[%emt 0:00:18]} 81. Kf6 {[%emt 0:00:09]} Rf1 {[%emt 0:00:10]} 82. Re7 {[%emt 0:00:53]} Kf8 {[%emt 0:01:02]} 83. g7+ {[%emt 0:00:03]} Kg8 {[%emt 0:00:04]} 84. Re8+ {[%emt 0:00:13]} Kh7 {[%emt 0:00:03]} 85. Rh8# {[%emt 0:00:10]} 1-0

[Event "White Rook U14 Final 2019"]
[Site "Sochi"]
[Date "2019.06.06"]
[Round "4.24"]
[White "Kulish, Glafira"]
[Black "Hrbkova, Johana"]
[Result "1/2-1/2"]
[ECO "D26"]
[WhiteElo "1379"]
[BlackElo "1085"]
[Annotator "NA RC"]
[PlyCount "149"]
[EventDate "2019.06.02"]
[EventCountry "RUS"]
[SourceTitle "playchess.com"]
[Source "ChessBase"]
[SourceQuality "1"]
[TimeControl "5400+30"]

1. d4 {[%emt 0:00:00]} d5 {[%emt 0:00:00]} 2. c4 {[%emt 0:00:00]} dxc4 {[%emt 0:00:00]} 3. Nf3 {[%emt 0:00:00]} Nf6 {[%emt 0:00:01]} 4. e3 {[%emt 0:00:00]} e6 {[%emt 0:01:05]} 5. Bxc4 {[%emt 0:00:23]} Be7 {[%emt 0:01:50]} 6. O-O {[%emt 0:00:33]} c5 {[%emt 0:04:00]} 7. dxc5 {[%emt 0:00:20]} Qxd1 {[%emt 0:04:58]} 8. Rxd1 {[%emt 0:00:40]} Bxc5 {[%emt 0:00:36]} 9. Bd2 {[%emt 0:04:04]} Nbd7 {[%emt 0:04:42]} 10. Ne1 {[%emt 0:02:10]} b6 {[%emt 0:01:53]} 11. Nd3 {[%emt 0:00:24]} Bb7 {[%emt 0:05:56]} 12. Nc3 {[%emt 0:02:13]} O-O {[%emt 0:02:16]} 13. Nxc5 {[%emt 0:03:09]} Nxc5 {[%emt 0:01:04]} 14. b4 {[%emt 0:05:09]} Nce4 {[%emt 0:02:22]} 15. Nxe4 {[%emt 0:01:11]} Nxe4 {[%emt 0:01:24]} 16. f3 {[%emt 0:00:59]} Nd6 {[%emt 0:06:33]} 17. Bb3 {[%emt 0:01:40]} Rac8 {[%emt 0:05:38]} 18. a4 {[%emt 0:02:56]} a6 {[%emt 0:04:09]} 19. b5 {[%emt 0:02:06]} axb5 {[%emt 0:02:51]} 20. Bb4 {[%emt 0:00:39]} Nc4 {[%emt 0:14:02]} 21. Bxf8 {[%emt 0:01:22]} Kxf8 {[%emt 0:01:35]} 22. e4 {[%emt 0:01:30]} bxa4 {[%emt 0:00:32]} 23. Bxa4 {[%emt 0:00:35]} f5 {[%emt 0:04:17]} 24. Bb3 {[%emt 0:02:35]} fxe4 {[%emt 0:05:01]} 25. Rac1 {[%emt 0:02:21]} b5 {[%emt 0:04:38]} 26. fxe4 {[%emt 0:02:45]} Bxe4 {[%emt 0:02:36]} 27. Rd4 {[%emt 0:04:23]} Bd5 {[%emt 0:00:37]} 28. Bxc4 {[%emt 0:03:05]} bxc4 {[%emt 0:00:42]} 29. Rg4 {[%emt 0:08:59]} c3 {[%emt 0:01:13]} 30. Kf2 {[%emt 0:04:35]} c2 {[%emt 0:01:07]} 31. Ke3 {[%emt 0:00:50]} Bb3 {[%emt 0:02:00]} 32. Rf4+ {[%emt 0:01:11]} Ke7 {[%emt 0:03:01]} 33. Rf2 {[%emt 0:02:37]} Rd8 {[%emt 0:00:24]} 34. Rd2 {[%emt 0:06:34]} Rb8 {[%emt 0:02:09]} 35. Rd3 {[%emt 0:00:37]} Ba4 {[%emt 0:01:36]} 36. Rc3 {[%emt 0:01:13]} Rb1 {[%emt 0:00:33]} 37. R3xc2 {[%emt 0:04:03]} Bxc2 {[%emt 0:00:15]} 38. Rxc2 {[%emt 0:07:13]} Kf6 {[%emt 0:01:39]} 39. Kf3 {[%emt 0:00:00]} Kf5 {[%emt 0:00:18]} 40. Rc7 {[%emt 0:00:30]} Kf6 {[%emt 0:01:07]} 41. Rc2 {[%emt 0:02:35]} Rh1 {[%emt 0:01:18]} 42. h3 {[%emt 0:00:18]} Rf1+ {[%emt 0:00:45]} 43. Ke2 {[%emt 0:00:11]} Rf4 {[%emt 0:00:54]} 44. Ke3 {[%emt 0:00:27]} Rf5 {[%emt 0:01:06]} 45. Ke4 {[%emt 0:01:35]} Kg5 {[%emt 0:00:38]} 46. Rc7 {[%emt 0:00:17]} Kg6 {[%emt 0:00:25]} 47. Rc6 {[%emt 0:00:48]} Kf6 {[%emt 0:01:48]} 48. Rc2 {[%emt 0:00:00]} g5 {[%emt 0:02:14]} 49. g4 {[%emt 0:00:42]} Rf4+ {[%emt 0:00:16]} 50. Ke3 {[%emt 0:00:37]} Kg6 {[%emt 0:01:09]} 51. Rc6 {[%emt 0:00:43]} Rf6 {[%emt 0:00:24]} 52. Ke4 {[%emt 0:00:16]} h5 {[%emt 0:01:20]} 53. gxh5+ {[%emt 0:00:32]} Kxh5 {[%emt 0:00:18]} 54. Ke5 {[%emt 0:00:21]} Rf5+ {[%emt 0:00:40]} 55. Ke4 {[%emt 0:00:35]} Rf6 {[%emt 0:01:30]} 56. Ke5 {[%emt 0:01:06]} Rf5+ {[%emt 0:00:21]} 57. Ke4 {[%emt 0:00:07]} Rf4+ {[%emt 0:01:15]} 58. Ke3 {[%emt 0:01:35]} Kh4 {[%emt 0:00:29]} 59. Rxe6 {[%emt 0:00:18]} Kxh3 {[%emt 0:00:46]} 60. Rh6+ {[%emt 0:00:20]} Kg4 {[%emt 0:00:22]} 61. Rh1 {[%emt 0:00:05]} Rf5 {[%emt 0:00:37]} 62. Ke4 {[%emt 0:00:41]} Rf7 {[%emt 0:00:23]} 63. Rg1+ {[%emt 0:00:53]} Kh5 {[%emt 0:00:23]} 64. Rh1+ {[%emt 0:02:25]} Kg6 {[%emt 0:00:35]} 65. Rg1 {[%emt 0:00:28]} Rg7 {[%emt 0:00:50]} 66. Kf3 {[%emt 0:00:33]} Kf5 {[%emt 0:00:28]} 67. Ra1 {[%emt 0:00:12]} g4+ {[%emt 0:00:11]} 68. Kg3 {[%emt 0:00:43]} Kg5 {[%emt 0:00:39]} 69. Ra4 {[%emt 0:00:56]} Kh5 {[%emt 0:00:24]} 70. Ra8 {[%emt 0:00:28]} Rg6 {[%emt 0:00:35]} 71. Rh8+ {[%emt 0:00:19]} Kg5 {[%emt 0:00:42]} 72. Ra8 {[%emt 0:00:04]} Kf5 {[%emt 0:00:47]} 73. Ra5+ {[%emt 0:00:17]} Ke4 {[%emt 0:00:30]} 74. Ra4+ {[%emt 0:01:01]} Kf5 {[%emt 0:00:43]} 75. Ra5+ {[%emt 0:00:13]} 1/2-1/2

[Event "White Rook U14 Final 2019"]
[Site "Sochi"]
[Date "2019.06.06"]
[Round "4.25"]
[White "Mertsalov, Roman"]
[Black "Shakhov, Dmitriy"]
[Result "1-0"]
[ECO "D02"]
[WhiteElo "1349"]
[BlackElo "1624"]
[Annotator "NA RC"]
[PlyCount "73"]
[EventDate "2019.06.02"]
[EventCountry "RUS"]
[SourceTitle "playchess.com"]
[Source "ChessBase"]
[SourceQuality "1"]
[TimeControl "5400+30"]

1. d4 {[%emt 0:00:00]} d5 {[%emt 0:00:00]} 2. Nf3 {[%emt 0:00:00]} e6 {[%emt 0:00:00]} 3. Bf4 {[%emt 0:00:00]} Nf6 {[%emt 0:00:00]} 4. e3 {[%emt 0:00:00]} c5 {[%emt 0:01:45]} 5. Bb5+ {[%emt 0:00:52]} Bd7 {[%emt 0:01:40]} 6. Bxd7+ {[%emt 0:00:06]} Nbxd7 {[%emt 0:00:10]} 7. O-O {[%emt 0:00:08]} Rc8 {[%emt 0:01:03]} 8. Ne5 {[%emt 0:01:13]} Be7 {[%emt 0:02:47]} 9. Nd2 {[%emt 0:00:54]} cxd4 {[%emt 0:01:37]} 10. exd4 {[%emt 0:00:00]} Qb6 {[%emt 0:00:08]} 11. Nb3 {[%emt 0:00:45]} O-O {[%emt 0:01:17]} 12. c3 {[%emt 0:01:52]} Qa6 {[%emt 0:09:02]} 13. Bg5 {[%emt 0:02:23]} Bd6 {[%emt 0:11:35]} 14. Re1 {[%emt 0:02:09]} Bxe5 {[%emt 0:11:40]} 15. dxe5 {[%emt 0:00:00]} Ne4 {[%emt 0:00:11]} 16. Rxe4 {[%emt 0:01:27]} dxe4 {[%emt 0:06:27]} 17. Qxd7 {[%emt 0:00:28]} Qe2 {[%emt 0:01:35]} 18. Rd1 {[%emt 0:03:43]} h6 {[%emt 0:09:17]} 19. Be7 {[%emt 0:02:10]} Rfe8 {[%emt 0:00:25]} 20. Rf1 {[%emt 0:05:25]} Qxb2 {[%emt 0:01:57]} 21. Qxb7 {[%emt 0:02:13]} Qxa2 {[%emt 0:05:37]} 22. Nc5 {[%emt 0:10:29]} Qa3 {[%emt 0:09:23]} 23. Qd7 {[%emt 0:03:05]} a5 {[%emt 0:01:22]} 24. h3 {[%emt 0:01:17]} Ra8 {[%emt 0:02:50]} 25. Bd6 {[%emt 0:06:33]} Qxc3 {[%emt 0:02:45]} 26. Na4 {[%emt 0:00:45]} Qd4 {[%emt 0:03:15]} 27. Qb5 {[%emt 0:03:20]} Red8 {[%emt 0:06:53]} 28. Nb6 {[%emt 0:14:39]} Ra7 {[%emt 0:00:36]} 29. Nc4 {[%emt 0:12:41]} Rc8 {[%emt 0:03:39]} 30. Nb6 {[%emt 0:05:26]} Rc2 {[%emt 0:02:25]} 31. Nd7 {[%emt 0:08:07]} Qb2 {[%emt 0:01:31]} 32. Qa4 {[%emt 0:04:45]} e3 {[%emt 0:00:25]} 33. Ba3 {[%emt 0:02:12]} Qa2 {[%emt 0:00:59]} 34. Nf6+ {[%emt 0:05:12]} gxf6 {[%emt 0:00:50]} 35. Qg4+ {[%emt 0:01:02]} Kh8 {[%emt 0:01:04]} 36. exf6 {[%emt 0:00:57]} exf2+ {[%emt 0:00:37]} 37. Kh1 {[%emt 0:00:19]} 1-0

[Event "White Rook U14 Final 2019"]
[Site "Sochi"]
[Date "2019.06.06"]
[Round "4.26"]
[White "Bratov, Ademir"]
[Black "Mertsalov, Semen"]
[Result "1-0"]
[ECO "B50"]
[WhiteElo "1725"]
[BlackElo "1477"]
[Annotator "NA RC"]
[PlyCount "127"]
[EventDate "2019.06.02"]
[EventCountry "RUS"]
[SourceTitle "playchess.com"]
[Source "ChessBase"]
[SourceQuality "1"]
[TimeControl "5400+30"]

1. e4 {[%emt 0:00:00]} c5 {[%emt 0:00:00]} 2. Nf3 {[%emt 0:00:00]} d6 {[%emt 0:00:00]} 3. c3 {[%emt 0:00:00]} Nf6 {[%emt 0:00:00]} 4. h3 {[%emt 0:00:00]} Nc6 {[%emt 0:02:30]} 5. Bd3 {[%emt 0:00:00]} a6 {[%emt 0:00:23]} 6. O-O {[%emt 0:01:09]} e6 {[%emt 0:00:36]} 7. Bc2 {[%emt 0:00:47]} Be7 {[%emt 0:00:19]} 8. Re1 {[%emt 0:00:48]} O-O {[%emt 0:00:05]} 9. d4 {[%emt 0:02:23]} cxd4 {[%emt 0:01:38]} 10. cxd4 {[%emt 0:00:07]} e5 {[%emt 0:00:31]} 11. d5 {[%emt 0:01:25]} Nb4 {[%emt 0:04:11]} 12. Bb3 {[%emt 0:02:16]} a5 {[%emt 0:00:47]} 13. Nc3 {[%emt 0:02:10]} Na6 {[%emt 0:02:22]} 14. Be3 {[%emt 0:06:59]} Bd7 {[%emt 0:05:14]} 15. Nxe5 {[%emt 0:13:48]} dxe5 {[%emt 0:01:06]} 16. d6 {[%emt 0:00:04]} h6 {[%emt 0:02:08]} 17. dxe7 {[%emt 0:05:30]} Qxe7 {[%emt 0:01:03]} 18. Nd5 {[%emt 0:02:48]} Nxd5 {[%emt 0:01:42]} 19. exd5 {[%emt 0:01:13]} Qd6 {[%emt 0:01:12]} 20. Rc1 {[%emt 0:02:26]} Rfc8 {[%emt 0:00:14]} 21. Qd2 {[%emt 0:00:54]} a4 {[%emt 0:00:31]} 22. Bc2 {[%emt 0:00:52]} Nb4 {[%emt 0:06:17]} 23. Bb1 {[%emt 0:01:34]} Nxd5 {[%emt 0:30:46]} 24. Rxc8+ {[%emt 0:05:12]} Rxc8 {[%emt 0:01:20]} 25. Rd1 {[%emt 0:01:30]} Be6 {[%emt 0:00:11]} 26. Be4 {[%emt 0:02:06]} Rd8 {[%emt 0:00:47]} 27. Qa5 {[%emt 0:00:30]} f5 {[%emt 0:03:03]} 28. Bxd5 {[%emt 0:08:07]} Bxd5 {[%emt 0:00:10]} 29. Bc5 {[%emt 0:00:23]} Qd7 {[%emt 0:01:40]} 30. Bb6 {[%emt 0:00:16]} Rc8 {[%emt 0:01:15]} 31. Qxd5+ {[%emt 0:00:56]} Qxd5 {[%emt 0:00:35]} 32. Rxd5 {[%emt 0:00:03]} Rc2 {[%emt 0:00:00]} 33. Rb5 {[%emt 0:00:29]} g6 {[%emt 0:00:10]} 34. Kf1 {[%emt 0:00:36]} e4 {[%emt 0:00:15]} 35. Ke1 {[%emt 0:00:09]} Rc1+ {[%emt 0:02:56]} 36. Kd2 {[%emt 0:00:39]} Rh1 {[%emt 0:00:44]} 37. Be3 {[%emt 0:00:12]} Rh2 {[%emt 0:00:01]} 38. g3 {[%emt 0:02:27]} Rxh3 {[%emt 0:01:32]} 39. Rxb7 {[%emt 0:00:13]} Rh1 {[%emt 0:01:07]} 40. Rb4 {[%emt 0:00:16]} h5 {[%emt 0:00:04]} 41. Rxa4 {[%emt 0:00:15]} h4 {[%emt 0:00:03]} 42. gxh4 {[%emt 0:00:02]} Rxh4 {[%emt 0:00:03]} 43. Ke2 {[%emt 0:01:20]} Rg4 {[%emt 0:00:40]} 44. Rd4 {[%emt 0:01:09]} Kf7 {[%emt 0:00:17]} 45. b4 {[%emt 0:00:26]} Ke6 {[%emt 0:00:23]} 46. b5 {[%emt 0:00:11]} Rh4 {[%emt 0:00:51]} 47. b6 {[%emt 0:00:39]} Rh8 {[%emt 0:00:00]} 48. Bf4 {[%emt 0:00:08]} Rh7 {[%emt 0:00:06]} 49. Bc7 {[%emt 0:00:08]} Rh1 {[%emt 0:00:55]} 50. b7 {[%emt 0:00:13]} Ra1 {[%emt 0:00:05]} 51. b8=Q {[%emt 0:00:13]} Rxa2+ {[%emt 0:00:04]} 52. Rd2 {[%emt 0:00:36]} Ra3 {[%emt 0:00:55]} 53. Qg8+ {[%emt 0:00:11]} Kf6 {[%emt 0:00:20]} 54. Bd8+ {[%emt 0:00:00]} Ke5 {[%emt 0:00:16]} 55. Rd5+ {[%emt 0:00:04]} Kf4 {[%emt 0:00:12]} 56. Bc7+ {[%emt 0:00:07]} Kg5 {[%emt 0:00:04]} 57. Qd8+ {[%emt 0:00:24]} Kg4 {[%emt 0:00:07]} 58. Bg3 {[%emt 0:01:15]} Ra2+ {[%emt 0:00:00]} 59. Rd2 {[%emt 0:00:00]} Rxd2+ {[%emt 0:00:00]} 60. Qxd2 {[%emt 0:00:01]} g5 {[%emt 0:00:06]} 61. Qd7 {[%emt 0:01:10]} Kh3 {[%emt 0:00:32]} 62. Qxf5+ {[%emt 0:00:07]} g4 {[%emt 0:00:31]} 63. Qh5+ {[%emt 0:00:00]} Kg2 {[%emt 0:00:14]} 64. Qh2# {[%emt 0:00:00]} 1-0